Cogmind - Beta 14 @@@ ROGUE MODE // 2025.03.10 @ 08:39:12 Player: canerib Result: Destroyed by S-27 Virus with Autogun Performance ------------- Evolutions (3) 1500 Regions Visited (6) 1200 Robots Destroyed (45) 225 Value Destroyed (1374) 1374 Prototype IDs (4) 80 Alien Tech Used (0) 0 Bonus (-43) -43 TOTAL SCORE: 4336 Bonus ------- Follower Combat Kills 89 Friendly Fire -132 Cogmind --------- Core Integrity 0/700 Matter 152/300 Energy 72/100 System Corruption 2% Temperature Cool (0) Movement Hovering (46) Location -7/Factory Parts ------- > --- POWER (2) -------- (None) > --- PROPULSION (5) --- Improved Airjet Improved Airjet > --- UTILITY (4) ------ Signal Interpreter > --- WEAPON (2) ------- (None) > --- INVENTORY (5) ---- Terrain Scanner Advanced ECM Suite Advanced ECM Suite Advanced ECM Suite System Shield Peak State ------------ > --- POWER ------------ Deuterium Engine Light Nuclear Core > --- PROPULSION ------- Aluminum Leg Aluminum Leg Aluminum Leg Aluminum Leg Aluminum Leg > --- UTILITY ---------- Large Storage Unit Improved Terrain Scanner Terrain Scan Processor Hardened Medium Armor Plating > --- WEAPON ----------- Beam Rifle Particle Gun > --- INVENTORY -------- Aluminum Leg Heat Sink Improved Sensor Array Signal Interpreter Terrain Scanner Advanced ECM Suite Advanced ECM Suite Advanced ECM Suite Advanced ECM Suite Hardened Medium Armor Plating Particle Gun Heavy Assault Rifle Mini Grenade Launcher [Rating: 27] Favorites ----------- Power Light Ion Engine Engine Light Ion Engine Power Core Light Nuclear Core Propulsion Aluminum Leg Leg Aluminum Leg Wheel Wheel Hover Unit Improved Airjet Utility Small Storage Unit Device Tractor Beam Storage Small Storage Unit Processor Terrain Scan Processor Protection Hardened Medium Armor Plating Weapon Assault Rifle Energy Gun Particle Gun Ballistic Gun Assault Rifle Launcher Mini Grenade Launcher Special Weapon Mining Laser Build | -11 -10 -10 -9 -9 -8 -7 ------- Run | Yrd Mat Min Mat Min Mat Fac Slots Evolved 6 | . . . 2 . 2 2 Power 1 | . . . . . . 1 Propulsion 3 | . . . 1 . 1 1 Utility 2 | . . . 1 . 1 . Weapon . | . . . . . . . Parts Attached 84 | 7 10 12 7 13 17 18 Power 15 | 1 4 1 1 1 4 3 Engine 10 | 1 4 . 1 1 2 1 Core 5 | . . 1 . . 2 2 Reactor . | . . . . . . . Propulsion 32 | 2 2 6 4 6 6 6 Treads . | . . . . . . . Leg 26 | 2 2 6 4 3 5 4 Wheel 4 | . . . . 3 1 . Hover 2 | . . . . . . 2 Flight . | . . . . . . . Utility 20 | 2 2 1 2 4 4 5 Device 11 | 1 2 1 2 1 1 3 Storage 3 | 1 . . . 1 1 . Processor 2 | . . . . 1 . 1 Hackware . | . . . . . . . Protection 4 | . . . . 1 2 1 Artifact . | . . . . . . . Weapon 17 | 2 2 4 . 2 3 4 Energy Gun 6 | . . . . 1 3 2 Energy Cannon . | . . . . . . . Ballistic Gun 9 | 2 2 4 . . . 1 Ballistic Cannon . | . . . . . . . Launcher 1 | . . . . . . 1 Special Weapon 1 | . . . . 1 . . Impact Weapon . | . . . . . . . Slashing Weapon . | . . . . . . . Piercing Weapon . | . . . . . . . Special Melee Weapon . | . . . . . . . Unidentified Prototypes 1 | . . . . . . 1 Parts Lost 34 | . . 4 1 10 1 18 Power 5 | . . . 1 1 . 3 Propulsion 12 | . . . . 4 1 7 Utility 7 | . . 2 . 2 . 3 Weapon 10 | . . 2 . 3 . 5 Highest Loss Streak 14 | . . 2 1 10 1 14 To Critical Strikes . | . . . . . . . Average Slot Usage (%) 90 | . 99 97 93 64 97 70 Engine 8 | . 14 11 6 2 3 4 Core 2 | . . 2 4 . 5 4 Leg 26 | . 27 28 33 21 23 24 Wheel 1 | . . . . 3 11 . Device 10 | . 13 12 16 4 9 4 Storage 11 | . 14 14 11 11 9 5 Processor 2 | . . . . 1 9 7 Protection 2 | . . . . 7 9 4 Energy Gun 4 | . . . . 9 17 10 Ballistic Gun 17 | . 27 27 22 3 . . Peak Build Rating 27 | 7 8 11 14 14 23 27 Average Rating 11 | 5 6 8 13 11 20 18 On Entrance 10 | . 7 7 11 14 14 23 Naked Turns 1 | . . . . . . 1 Heaviest Build 49 | 13 15 15 14 19 40 49 Greatest Support 50 | 20 20 25 35 35 40 50 Greatest Overweight (x) 8 | 3 1 . . 2 2 8 Average Overweight (x) . | . . . . . . . Largest Inventory Capacity 15 | 8 8 8 8 8 15 15 Average Capacity 9 | 7 8 8 8 8 12 13 Most Carried 15 | 4 8 8 8 8 15 15 Average Carried 7 | 1 7 7 7 3 9 11 Final Capacity 15 | 8 8 8 8 8 15 5 Final Carried 15 | 4 8 8 8 8 15 5 Class Distribution -------------------- 64% | Mutant 35% | Scavenger-Mutant Dominant Class ---------------- Mutant | -10/Materials Mutant | -10/Mines Scavenger-Mutant | -9/Materials Mutant | -9/Mines Scavenger-Mutant | -8/Materials Scavenger-Mutant | -7/Factory Resources | -11 -10 -10 -9 -9 -8 -7 ----------- Run | Yrd Mat Min Mat Min Mat Fac Matter Collected 1555 | 306 288 444 69 134 168 146 Remotely 369 | 81 288 . . . . . Salvage Created 1671 | 109 298 518 142 51 357 196 Parts 98 | 8 27 29 8 . 16 10 Haulers Intercepted . | . . . . . . . Recyclers Shooed . | . . . . . . . Parts Field Recycled . | . . . . . . . Retrieved Matter . | . . . . . . . Parts Self-Destructed . | . . . . . . . Prevented . | . . . . . . . Kills | -11 -10 -10 -9 -9 -8 -7 ------- Run | Yrd Mat Min Mat Min Mat Fac Combat Hostiles Destroyed 40 | . 9 11 4 4 7 5 Guns 39 | . 9 11 4 4 7 4 AOE 1 | . . . . . . 1 Classes Destroyed 11 | 2 3 1 . 1 1 3 Worker 1 | . . . . . . 1 Tunneler 3 | 2 . 1 . . . . Recycler 1 | 1 . . . . . . Operator 1 | . . . . . . 1 Watcher 2 | . 2 . . . . . Swarmer 7 | . 4 3 . . . . Grunt 22 | . 5 7 4 . 3 3 Duelist 1 | . . . . . 1 . Sentry 5 | . . 1 . . 3 1 Heavy 1 | . . . . . . 1 Assembled 4 | . . . . 4 . . Thug 1 | . . 1 . . . . Best Kill Streak 5 | 3 2 3 2 3 5 3 Combat Bots Only 5 | . 2 3 2 3 5 2 Max Kills in Single Turn 1 | 1 1 1 1 1 1 1 Gunslinging . | . . . . . . . Exploded 1 | . . . . . . 1 Melee . | . . . . . . . Uniques/NPCs Destroyed . | . . . . . . . Combat | -11 -10 -10 -9 -9 -8 -7 -------- Run | Yrd Mat Min Mat Min Mat Fac Hostile Shots Fired 420 | . 47 72 31 74 27 169 Missed 130 | . 11 24 7 20 8 60 Damage Taken 4672 | . 375 584 301 966 320 2126 Core 1201 | . 47 86 98 225 41 704 Absorbed by Shields . | . . . . . . . Regen/Repaired (Parts) 33 | . 33 . . . . . Core Remaining (%) 64 | 100 . 46 . 19 92 . Volleys Fired 185 | 6 37 53 22 16 17 34 Largest 2 | 2 2 2 2 2 2 2 Hottest 130 | 40 40 40 40 75 130 121 Shots Fired 334 | 12 73 95 44 20 34 56 Gun 321 | 12 73 95 44 20 34 43 Cannon . | . . . . . . . Launcher 13 | . . . . . . 13 Special . | . . . . . . . Kinetic 246 | 12 73 95 44 11 . 11 Thermal 75 | . . . . 9 34 32 Explosive 13 | . . . . . . 13 Electromagnetic . | . . . . . . . Robot Hit Streak 12 | 7 12 5 11 4 6 9 Robot Miss Streak 8 | 2 4 8 3 4 2 5 Penetration Max . | . . . . . . . Secondary Targets 2 | . 1 . . . . 1 Max Gunslinging Chain 1 | . 1 . . . . 1 Shots Hit Robots 210 | 7 46 56 27 12 24 38 Core Hits 101 | 3 17 27 10 7 14 23 Critical Kills 1 | . . . 1 . . . Critical Parts Destroyed . | . . . . . . . Critical Strikes 4 | . . . 1 1 1 1 Burn 3 | . . . . 1 1 1 Destroy 1 | . . . 1 . . . Melee Attacks . | . . . . . . . Impact . | . . . . . . . Slashing . | . . . . . . . Piercing . | . . . . . . . Sneak Attacks . | . . . . . . . Combat Hostiles . | . . . . . . . Follow-up Attacks . | . . . . . . . Damage Inflicted 3110 | 132 583 741 230 211 438 775 Guns 2781 | 132 583 741 230 195 438 462 Cannons . | . . . . . . . Explosions 293 | . . . . . . 293 Melee . | . . . . . . . Ramming 36 | . . . . 16 . 20 Kinetic 1847 | 132 583 741 230 47 . 114 Thermal 934 | . . . . 148 438 348 Explosive 293 | . . . . . . 293 Electromagnetic . | . . . . . . . Impact . | . . . . . . . Slashing . | . . . . . . . Piercing . | . . . . . . . Highest Corruption 3 | . 3 3 . 2 2 2 Average Corruption 2 | . 2 3 . 2 2 1 Corruption Purged . | . . . . . . . Corruption Blocked . | . . . . . . . Effects 22 | . 6 11 . 3 1 1 Message Errors 6 | . . 2 . 3 . 1 Matter Fused 4 | . 1 3 . . . . Energy Discharges 4 | . 3 1 . . . . Parts Fused 1 | . . 1 . . . . Data Loss (minor) 5 | . 1 3 . . 1 . Misfires 1 | . . 1 . . . . Weapon Failures 1 | . 1 . . . . . Overload Shots . | . . . . . . . Overflow Damage . | . . . . . . . Projectiles . | . . . . . . . Explosions . | . . . . . . . Melee . | . . . . . . . Knockbacks . | . . . . . . . Impact . | . . . . . . . Kinetic . | . . . . . . . Secondary . | . . . . . . . Self-Inflicted Damage 17 | . . . . 8 . 9 Shots . | . . . . . . . Rammed 7 | . . . . 2 . 5 Targets Rammed 7 | . . . . 2 . 5 Kicked . | . . . . . . . Crushed . | . . . . . . . Highest Temperature 682 | . 2 8 . 84 682 283 Average Temperature 130 | . 2 2 . 38 228 97 Received Heat Transfer 1193 | . 171 264 180 20 108 450 Effects 25 | . . . . . 21 4 Shutdowns 3 | . . . . . 3 . Energy Bleed 1 | . . . . . 1 . Interference 7 | . . . . . 3 4 Matter Decay 1 | . . . . . 1 . Short Circuit 3 | . . . . . 3 . Damage (minor) 1 | . . . . . 1 . Damage (major) 9 | . . . . . 9 . Siege Activations . | . . . . . . . Robots Corrupted . | . . . . . . . Combat Hostiles . | . . . . . . . Parts Fried . | . . . . . . . Impact Corruptions . | . . . . . . . Robots Melted . | . . . . . . . Combat Hostiles . | . . . . . . . Parts Melted 5 | . . . . . 5 . Heat Transferred 2220 | . . . . 333 962 925 Parts Sabotaged . | . . . . . . . Parts Stolen . | . . . . . . . Parts Stripped . | . . . . . . . Power Chain Reactions . | . . . . . . . Alert | -11 -10 -10 -9 -9 -8 -7 ------- Run | Yrd Mat Min Mat Min Mat Fac Peak Influence 237 | 15 174 237 136 52 221 144 Initial 52 | . 9 8 7 52 . 6 Average 74 | 4 76 93 83 6 115 59 Maximum Alert Level 1 | . . 1 . . 1 . Low Security (%) 94 | 100 100 86 100 100 85 100 Level 1 5 | . . 13 . . 14 . Level 2 . | . . . . . . . Level 3 . | . . . . . . . Level 4 . | . . . . . . . Level 5 . | . . . . . . . High Security . | . . . . . . . Max Security . | . . . . . . . Squads Dispatched 8 | . 2 1 1 . . 4 Investigation 4 | . 2 1 1 . . . Extermination 1 | . . . . . . 1 Reinforcement 3 | . . . . . . 3 Assault . | . . . . . . . Garrison . | . . . . . . . Intercept . | . . . . . . . Searches Triggered . | . . . . . . . Construction Impeded . | . . . . . . . Haulers Reinforced . | . . . . . . . Active Scanning Responses . | . . . . . . . Cargo Convoy Interrupts . | . . . . . . . Stealth | -11 -10 -10 -9 -9 -8 -7 --------- Run | Yrd Mat Min Mat Min Mat Fac Distress Signals . | . . . . . . . Communications Jammed . | . . . . . . . Distress Signals . | . . . . . . . Times Spotted 87 | . 16 17 7 15 12 20 Peak Tracking Total 11 | . 3 3 3 11 4 10 Tactical Retreats 4 | . 1 . . 1 1 1 Traps | -11 -10 -10 -9 -9 -8 -7 ------- Run | Yrd Mat Min Mat Min Mat Fac Traps Triggered 7 | . 4 . 1 . 1 1 Indirectly . | . . . . . . . Trap Hack Attempts . | . . . . . . . Triggered . | . . . . . . . Disarmed . | . . . . . . . Reprogrammed . | . . . . . . . Reused . | . . . . . . . Traps Extracted . | . . . . . . . Installed . | . . . . . . . Triggered . | . . . . . . . Machines | -11 -10 -10 -9 -9 -8 -7 ---------- Run | Yrd Mat Min Mat Min Mat Fac Machines Disabled . | . . . . . . . Max in Single Turn . | . . . . . . . Machines Repaired . | . . . . . . . Machines Dismantled . | . . . . . . . Machines Sabotaged . | . . . . . . . Overloaded Fab Kills . | . . . . . . . Hacking | -11 -10 -10 -9 -9 -8 -7 --------- Run | Yrd Mat Min Mat Min Mat Fac Machines Accessed 17 | . 10 1 2 . 4 . Terminals 14 | . 8 1 2 . 3 . Fabricators . | . . . . . . . Repair Stations 1 | . 1 . . . . . Recycling Units 1 | . 1 . . . . . Scanalyzers 1 | . . . . . 1 . Garrison Access . | . . . . . . . Total Hacks 53 | . 25 2 10 . 16 . Successful 26 | . 10 . 5 . 11 . Failed 27 | . 15 2 5 . 5 . Catastrophic 10 | . 8 1 1 . . . Database Lockouts . | . . . . . . . Manual 34 | . 14 1 7 . 12 . Terminals 43 | . 18 2 10 . 13 . Fabricators . | . . . . . . . Repair Stations 4 | . 4 . . . . . Recycling Units 3 | . 3 . . . . . Scanalyzers 3 | . . . . . 3 . Garrison Access . | . . . . . . . Terminal Hacks 14 | . 3 . 5 . 6 . Prototype ID Bank 1 | . . . 1 . . . Level Access Points 2 | . . . 1 . 1 . Branch Access Points 2 | . . . 1 . 1 . Alert Level 6 | . 2 . 2 . 2 . Unreport Threat 1 | . . . . . 1 . Transport Status 1 | . . . . . 1 . Zone Layout 1 | . 1 . . . . . Fabricator Hacks . | . . . . . . . Repair Station Hacks 4 | . 4 . . . . . Scan Component 2 | . 2 . . . . . Repair 2 | . 2 . . . . . Recycling Unit Hacks 1 | . 1 . . . . . Report Inventory 1 | . 1 . . . . . Scanalyzer 2 | . . . . . 2 . Insert Component 1 | . . . . . 1 . Analyze 1 | . . . . . 1 . Garrison Access Hacks . | . . . . . . . Unauthorized Hacks 5 | . 2 . . . 3 . Terminals 5 | . 2 . . . 3 . Botnet 5 | . 2 . . . 3 . Fabricators . | . . . . . . . Repair Stations . | . . . . . . . Recycling Units . | . . . . . . . Scanalyzers . | . . . . . . . Garrison Access . | . . . . . . . Data Cores Recovered . | . . . . . . . Used . | . . . . . . . Hacking Detections 15 | . 9 1 2 . 3 . Full Trace Events 5 | . 4 1 . . . . Feedback Events . | . . . . . . . Feedback Blocked . | . . . . . . . Robot Schematics Acquired . | . . . . . . . Robots Built . | . . . . . . . Authchips . | . . . . . . . Time . | . . . . . . . Total Robot Build Rating . | . . . . . . . Part Schematics Acquired 1 | . . . . . 1 . Parts Built . | . . . . . . . Authchips . | . . . . . . . Time . | . . . . . . . Total Part Build Rating . | . . . . . . . Parts Repaired 2 | . 2 . . . . . Time 52 | . 52 . . . . . Parts Recycled . | . . . . . . . Recycled Matter . | . . . . . . . Retrieved Matter . | . . . . . . . Retrieved Components . | . . . . . . . Parts Scanalyzed 1 | . . . . . 1 . Part Schematics Acquired 1 | . . . . . 1 . Parts Damaged . | . . . . . . . Bothacking | -11 -10 -10 -9 -9 -8 -7 ------------ Run | Yrd Mat Min Mat Min Mat Fac Used RIF Installer . | . . . . . . . Robots Hacked . | . . . . . . . Non-combat . | . . . . . . . Combat . | . . . . . . . Robot Hacks Applied . | . . . . . . . Relay Couplers Released . | . . . . . . . Fabnet Peak Effective % . | . . . . . . . Robots Rewired . | . . . . . . . Allies Hacked . | . . . . . . . Hacks Repelled . | . . . . . . . Allies | -11 -10 -10 -9 -9 -8 -7 -------- Run | Yrd Mat Min Mat Min Mat Fac Total Allies 3 | . . 3 . . . . Largest Group 2 | . . 2 . . . . Highest-Rated Group 42 | . . 42 . . . . Highest-Rated Ally 31 | . . 31 . . . . Total Orders . | . . . . . . . Ally Attacks 27 | . . 27 . . . . Total Damage 380 | . . 380 . . . . Kills 5 | . . 5 . . . . Allies Corrupted . | . . . . . . . Allies Melted . | . . . . . . . Intel | -11 -10 -10 -9 -9 -8 -7 ------- Run | Yrd Mat Min Mat Min Mat Fac Robot Analysis Total . | . . . . . . . Derelict Logs Recovered 3 | . . 1 . 2 . . Drone Launches . | . . . . . . . Drone Recoveries . | . . . . . . . Exploration | -11 -10 -10 -9 -9 -8 -7 ------------- Run | Yrd Mat Min Mat Min Mat Fac Turns Passed 3598 | 91 992 980 271 429 457 378 Spaces Moved 2304 | 45 650 648 156 307 293 205 Core 107 | 10 . . . 2 . 95 Treads . | . . . . . . . Legs 2040 | 35 650 648 156 261 182 108 Wheels 155 | . . . . 44 111 . Hover 2 | . . . . . . 2 Flight . | . . . . . . . Fastest Speed 46 | 50 120 120 120 80 80 46 Average Speed 115 | 132 120 120 120 115 106 97 Slowest Speed 450 | 200 190 120 120 190 260 450 Overloaded Moves . | . . . . . . . Propulsion Burnouts . | . . . . . . . Robots Hopped . | . . . . . . . Cave-ins Triggered . | . . . . . . . Exploration Rate (%) 46 | 4 99 95 21 71 27 6 Regions Visited 6 Branch Regions 2 Pre-discovered Areas 2 | . . 1 . 1 . . Known Exits Taken 3 | . . . 1 1 1 . Unknown Exits Taken 3 | 1 1 1 . . . . Scrap Searched 1 | . . 1 . . . . Spaces Dug . | . . . . . . . Terrain Destroyed 32 | . . . . . . 32 Melee . | . . . . . . . Projectile . | . . . . . . . AOE 32 | . . . . . . 32 Terrain Rammed . | . . . . . . . Walls Destroyed . | . . . . . . . Machines Disabled . | . . . . . . . Actions | -11 -10 -10 -9 -9 -8 -7 --------- Run | Yrd Mat Min Mat Min Mat Fac Total 2905 | 61 788 761 203 361 407 324 Wait 259 | . 79 37 16 17 51 59 Move 2299 | 44 649 647 155 307 292 205 Hop . | . . . . . . . Pick Up 37 | 4 7 3 1 5 16 1 Fast Attach 29 | 7 4 . 2 5 4 7 Attach 24 | . 1 3 2 6 4 8 Detach . | . . . . . . . Swap 31 | . 5 9 3 2 9 3 Drop 35 | . 6 9 2 2 14 2 Fire 185 | 6 37 53 22 16 17 34 Melee . | . . . . . . . Ram 6 | . . . . 1 . 5 Kick . | . . . . . . . Crush . | . . . . . . . Escape Stasis . | . . . . . . . Rewire . | . . . . . . . Trap . | . . . . . . . Miscellaneous . | . . . . . . . Route ------- -11/Scrapyard -10/Materials (discovered 4 exits: *Mat x3 / *Min) -10/Mines (discovered 2 exits: *Mat x2) -9/Materials (discovered 5 exits: Mat x3 / *Min x2) -9/Mines -8/Materials (discovered 5 exits: *Fac x3 / *Sto x2) -7/Factory History --------- Turn | Location | Event 9 | -11/Scrapyard | Discovered new exit (range 15) 92 | -11/Scrapyard | Entered Materials 318 | -10/Materials | Build established: Mutant 329 | -10/Materials | Repaired Tractor Beam 357 | -10/Materials | Repaired Aluminum Leg 506 | -10/Materials | Discovered new exit (range 16) 657 | -10/Materials | Discovered new exit (range 10) 817 | -10/Materials | Discovered new exit (range 13) 1022 | -10/Materials | Discovered new exit (range 5) 1084 | -10/Materials | Entered Mines 1095 | -10/Mines | Escorted by a lone wolf Derelict 1115 | -10/Mines | Learned location of Storage (-8) 1124 | -10/Mines | Joined a pair of Derelicts in attacking an 0b10 outpost 1175 | -10/Mines | Discovered new exit (range 5) 1233 | -10/Mines | Discovered new exit (range 8) 1944 | -10/Mines | Learned location of 1 exit from Materials 2007 | -10/Mines | Core integrity fell below 50% 2064 | -10/Mines | Entered Materials 2064 | -9/Materials | Evolved 2 slots: Propulsion x1, Utility x1 2065 | -9/Materials | Identified exit to Materials 2293 | -9/Materials | Identified exit to Mines 2333 | -9/Materials | Build established: Scavenger-Mutant 2335 | -9/Materials | Entered Mines 2356 | -9/Mines | Assembled infested the area 2396 | -9/Mines | Core integrity fell below 50% 2407 | -9/Mines | Core integrity fell below 20% 2470 | -9/Mines | Lost 10 parts (1p4n2u3w) 2620 | -9/Mines | Learned Materials emergency access door positions 2693 | -9/Mines | Discovered exit to Materials (range 10) 2764 | -9/Mines | Entered Materials 2764 | -8/Materials | Evolved 2 slots: Propulsion x1, Utility x1 2824 | -8/Materials | Identified exit to Storage 2824 | -8/Materials | Identified exit to Factory 3221 | -8/Materials | Entered Factory 3221 | -7/Factory | Evolved 2 slots: Power x1, Propulsion x1 3514 | -7/Factory | Lost 14 parts (2p7n2u3w) 3536 | -7/Factory | Core integrity fell below 50% 3536 | -7/Factory | Released all parts (2) 3568 | -7/Factory | Lost 4 parts (1p1u2w) 3579 | -7/Factory | Core integrity fell below 20% 3599 | -7/Factory | Destroyed by S-27 Virus with Autogun Last Messages --------------- 03547_ PK&U 03569_ Destabilizing: System interference. 03569_ Signal Interpreter temporarily disabled. 03570_ Slammed into P-60 Hacker. 03570_ Destabilizing: Core damaged (-7). 03571_ Slammed into P-60 Hacker. 03581_ U-05 Engineer lays Concrete. 03582_ The unstable cave ceiling collapses. 03582_ U-05 Engineer lays Concrete. 03582_ Acquired 5 matter. 03583_ U-05 Engineer builds a Wall. 03584_ R-06 Scavenger collects Hrd. Medium Armor Plating. 03588_ U-05 Engineer lays Concrete. 03595_ Acquired Prototype Hover Unit. 03595_ Identified Imp. Airjet. 03597_ Acquired Imp. Airjet. Map ----- +----------------------------------------------------+ | ?????????????????????????????????????????????????? | | ?????????????????????????????????????????????????? | | ?????????????????????????????????????????????????? | | ?????????????????????????????????????????????????? | | ?????????????????????????????????????????????????? | | ?????????????????????????????????????????????????? | | ?????????????????????????????????????????????????? | | ?????????????????????????????????????????????????? | | ?????????????????????????????????????????????????? | | ?????????????????????????????????????????????????? | | ?????????????????????????????????????????????????? | | ?????????????????????????????????????????????????? | | ?????????????????????????????????????????????????? | | ?????????????????????????????????? ??????????????? | | ?????????????????????????????????? #####?????????? | | ?????????????????????????????????? #?????????? | | ?????????????????????????????????? #?????????? | | ?????????????????????????????????# #?????????? | | ?????????????????????????????????# #?????????? | | ?????????????????????????????????# #?????????? | | ???????????????????############### #?????????? | | ???????????????????# ## #####+###?? | | ???????????????????# ! "" # ? | | ???????????????????# "" # ? | | ???????????????????# = """ # ? | | ???????????????????# @ """ # ? | | ???????????????????# """ + | | ???????????????? /s Y # | | ???????????????+####### ######### | | ??????????????????????##????????# ##### #??? | | ????????????????????????????????# #####+#### | | ????????????????????????????????# # ! | | ????????????????????????????????# # """ | | ????????????????????????????????# # """"" " | | ????????????????????????????????# # """"" " | | ???????????????????????????????## + | | ????????????????????????????????# # | | ???????????????????????????????## ### ### | | ????????????????????????????????# # | | ?????????????????????????????"?## # | | ??????????????????????????? ?? # | | ???????????????????????????#+### # // | | ?????????????????????????? # ! | | ?????????????????????????? # / | | ?????????????????????????? !%= | | ?????????????????????????? = | | ?????????????????????????? # % | | ??????????????????????????##+### # ! | | ?????????????????????????? ?? ?# # !! | | ?????????????????????????????" ### %### "" | +----------------------------------------------------+ Best States ------------- Heat Dissipation 52 Energy Generation 23 Energy Capacity 335 Matter Stores 300 Matter Capacity 300 Sight Range 16 Robot Scan Range 14 Terrain Scan Range 16 Terrain Scan Density 85 Armor Coverage 225 Evasion (%) 55 Item Schematics ----------------- Hvy. Particle Gun | -8/Materials | Scanalyzed Robot Schematics ------------------ None Fabricated ------------ Nothing Alien Tech Used ----------------- None Achievements -------------- Use The Force Challenges ------------ None Game ------ Seed CompanionCombatAutobeam Manual? 0 Play Time 00:45:30 Cumulative 55.0 hours Start 2025.03.09 @ 19:23:12 End 2025.03.10 @ 08:39:12 Sessions 5 Manual Loads 0 Difficulty Rogue Special Mode None Game No. 75 Rogue 75 Adventurer 0 Explorer 0 Win Type - Total 1 Types 1/0/0/0/0/0/0/0/0 Lore% 24 Gallery% 40 Achievement% 36 Wizard Run 0 Options --------- Layout 1 ASCII 1 Keyboard 0 Movement Numpad Keybinds 0 Fullscreen 1 Font 48/Smallcaps Map View 76x35 Zoom Use 0% Tactical HUD 1 Map Filters NONE Filters NONE Steam 1 RUN: db69accf-6b1c-4564-8871-621cf080dd54